bitfinex/quotes_SOLUSD_20250918
["timestamp","ask_amount","ask_price","bid_price","bid_amount"]
[1758228062751,85.32217817,248.62,248.61,610.72309786]
[1758228063132,85.32217817,248.62,248.61,611.41309786]
[1758228065238,83.6433543,248.62,248.61,611.41309786]
[1758228065436,84.51773766,248.62,248.61,611.41309786]
[1758228072035,53.69773766,248.62,248.61,611.41309786]
[1758228072241,84.51773766,248.62,248.61,611.41309786]
[1758228074855,85.21773766,248.62,248.61,610.72309786]
[1758228075027,84.51773766,248.62,248.61,610.72309786]
[1758228075227,82.83891379,248.62,248.61,610.72309786]
[1758228075456,84.51773766,248.62,248.61,611.41309786]
[1758228075936,84.51773766,248.62,248.61,610.72309786]
[1758228076849,82.83891379,248.62,248.61,610.72309786]
[1758228077057,84.51773766,248.62,248.61,610.72309786]
[1758228080033,52.01891379,248.62,248.61,610.72309786]
[1758228080335,84.51773766,248.62,248.61,611.41309786]
[1758228080539,84.51773766,248.62,248.61,610.72309786]
[1758228081636,84.51773766,248.62,248.61,611.41309786]
[1758228082947,84.51773766,248.62,248.61,610.72309786]
[1758228083253,84.51773766,248.62,248.61,611.41309786]
[1758228085056,84.51773766,248.62,248.61,610.72309786]
[1758228087463,84.51773766,248.62,248.61,611.44309786]
[1758228088555,84.51773766,248.62,248.61,610.72309786]
[1758228089255,84.51773766,248.62,248.61,611.44309786]
[1758228089543,84.51773766,248.62,248.61,610.72309786]
[1758228090673,86.19656153,248.62,248.61,610.72309786]
[1758228090961,84.51773766,248.62,248.61,610.72309786]
[1758228091463,82.83891379,248.62,248.61,610.72309786]
[1758228091667,84.51773766,248.62,248.61,611.44309786]
[1758228092655,84.51773766,248.62,248.61,610.72309786]
[1758228095354,84.51773766,248.62,248.61,611.44309786]
[1758228095758,85.46206495,248.62,248.61,611.44309786]
[1758228097346,88.75521611,248.62,248.61,544.51598932]
[1758228098350,88.75521611,248.62,248.61,478.30888078]
[1758228098664,88.08521611,248.62,248.61,478.30888078]
[1758228099565,85.46206495,248.62,248.61,478.30888078]
[1758228100166,88.75521611,248.62,248.61,478.30888078]
[1758228100658,88.08521611,248.62,248.61,478.30888078]
[1758228102868,57.26521611,248.62,248.61,478.30888078]
[1758228103076,88.08521611,248.62,248.61,478.30888078]
[1758228103775,57.93521611,248.62,248.61,478.30888078]
[1758228103947,88.75521611,248.62,248.61,478.30888078]
[1758228104147,88.08521611,248.62,248.61,478.30888078]
[1758228104348,57.26521611,248.62,248.61,478.30888078]
[1758228104548,88.08521611,248.62,248.61,478.30888078]
[1758228105789,85.46206495,248.62,248.61,479.02888078]
[1758228106278,85.46206495,248.62,248.61,478.30888078]
[1758228106473,54.64206495,248.62,248.61,478.30888078]
[1758228106653,85.46206495,248.62,248.61,478.30888078]
[1758228106966,85.46206495,248.62,248.61,479.02888078]
[1758228107355,54.64206495,248.62,248.61,479.02888078]
[1758228107550,85.46206495,248.62,248.61,478.30888078]
[1758228107951,54.64206495,248.62,248.61,478.30888078]
[1758228108152,85.46206495,248.62,248.61,478.30888078]
[1758228108570,54.64206495,248.62,248.61,478.30888078]
[1758228108882,85.46206495,248.62,248.61,478.30888078]
[1758228110062,54.64206495,248.62,248.61,478.30888078]
[1758228110269,85.46206495,248.62,248.61,478.30888078]
[1758228111575,54.64206495,248.62,248.61,478.30888078]
[1758228111764,85.46206495,248.62,248.61,478.30888078]
[1758228115866,85.46206495,248.62,248.61,0.03]
[1758228116065,54.64206495,248.62,248.61,0.73]
[1758228116261,82.83891379,248.62,248.61,0.73]
[1758228116572,85.46206495,248.62,248.61,0.73]
[1758228116974,85.46206495,248.62,248.61,0.03]
[1758228116975,54.64206495,248.62,248.61,0.03]
[1758228117171,85.46206495,248.62,248.61,0.03]
[1758228120374,88.79521611,248.62,248.61,0.03]
[1758228120577,57.97521611,248.62,248.61,0.03]
[1758228120763,86.17206495,248.62,248.61,0.03]
[1758228120970,88.08521611,248.62,248.61,0.03]
[1758228121556,85.46206495,248.62,248.61,0.03]
[1758228121759,54.64206495,248.62,248.61,0.73]
[1758228121955,85.46206495,248.62,248.61,0.73]
[1758228122179,85.46206495,248.62,248.61,0.03]
[1758228122374,54.64206495,248.62,248.61,0.03]
[1758228122580,85.46206495,248.62,248.61,0.03]
[1758228122871,82.83891379,248.62,248.61,0.03]
[1758228123077,85.46206495,248.62,248.61,0.03]
[1758228123569,54.64206495,248.62,248.61,0.03]
[1758228124079,85.46206495,248.62,248.61,0.03]
[1758228124776,54.64206495,248.62,248.61,0.03]
[1758228124984,85.46206495,248.62,248.61,0.03]
[1758228125186,82.83891379,248.62,248.61,0.73]
[1758228125360,52.01891379,248.62,248.61,0.73]
[1758228125566,85.46206495,248.62,248.61,0.73]
[1758228126980,85.46206495,248.62,248.61,0.03]
[1758228129700,82.83891379,248.62,248.61,0.73]
[1758228129992,85.46206495,248.62,248.61,0.73]
[1758228130168,82.83891379,248.62,248.61,0.73]
[1758228130486,85.46206495,248.62,248.61,0.73]
[1758228131168,85.46206495,248.62,248.61,0.03]
[1758228131370,57.26521611,248.62,248.61,0.03]
[1758228131586,39.87991715,248.59,248.58,0.73]
[1758228131898,73.32306831,248.59,248.58,0.03]
[1758228132267,74.93366604,248.59,248.58,0.03]
[1758228132467,74.93366604,248.59,248.58,0.73]
[1758228132676,77.5568172,248.59,248.58,0.03]
[1758228132898,46.7368172,248.59,248.58,0.03]
[1758228133063,77.5568172,248.59,248.58,0.03]
[1758228133463,0.28432314,248.54,248.53,0.03]
[1758228133685,0.28432314,248.52,248.49,0.2]
[1758228134001,13.87991715,248.5,248.49,0.2]
[1758228134185,13.87991715,248.48,248.47,0.2]
[1758228134388,47.32306831,248.48,248.47,0.2]
[1758228134696,52.16665156,248.48,248.47,0.9]
[1758228134892,18.7235004,248.48,248.47,0.9]
[1758228135097,45.5914233,248.48,248.47,0.9]
[1758228135302,45.52926173,248.48,248.47,0.9]
[1758228135897,45.6714233,248.48,248.47,0.9]
[1758228136684,48.29457446,248.48,248.47,0.9]
[1758228137398,48.29457446,248.48,248.47,0.2]
[1758228138084,49.00457446,248.48,248.47,0.2]
[1758228138707,48.29457446,248.48,248.47,0.2]
[1758228142111,45.6714233,248.48,248.47,0.2]
[1758228142309,48.29457446,248.48,248.47,0.2]
[1758228147815,48.35457446,248.48,248.47,0.2]
[1758228154097,16.50306831,248.47,248.46,0.03]
[1758228154997,18.11444463,248.47,248.46,0.03]
[1758228155828,17.1720869,248.47,248.46,0.03]
[1758228159117,17.8920869,248.47,248.46,0.03]
[1758228160528,17.1720869,248.47,248.46,0.03]
[1758228161008,17.1720869,248.47,248.46,0.73]
[1758228162223,1.61137632,248.47,248.46,0.73]
[1758228162421,30.88,248.47,248.46,0.73]
[1758228162624,31.16432314,248.47,248.46,0.73]
[1758228163426,30.88,248.47,248.46,0.73]
[1758228163925,31.16432314,248.47,248.46,0.73]
[1758228164131,57.16432314,248.47,248.46,0.73]
[1758228164311,26.28432314,248.47,248.46,0.73]
[1758228164512,57.16432314,248.47,248.46,0.73]
[1758228164909,26.28432314,248.47,248.46,0.73]
[1758228165104,57.16432314,248.47,248.46,0.73]
[1758228165626,57.14432314,248.47,248.46,0.73]
[1758228167332,27.96511657,248.47,248.46,0.73]
[1758228167535,58.82511657,248.47,248.46,0.73]
[1758228168052,72.42071058,248.47,248.46,0.73]
[1758228168541,43.1717624,248.47,248.46,0.73]
[1758228168717,74.0517624,248.47,248.46,0.73]
[1758228169139,43.1717624,248.47,248.46,0.73]
[1758228169333,74.7717624,248.47,248.46,0.03]
[1758228169538,74.0517624,248.47,248.46,0.03]
[1758228170311,74.7717624,248.47,248.45,0.03]
[1758228170547,15.56071058,248.46,248.45,0.03]
[1758228171039,17.89221674,248.46,248.45,0.03]
[1758228173324,19.57301017,248.46,248.44,0.03]
[1758228173538,0.28432314,248.41,248.27,26.0]
[1758228173737,1.68079343,248.37,248.27,26.0]
[1758228173931,32.58079343,248.37,248.27,26.0]
[1758228175738,36.60704458,248.37,248.36,0.82]
[1758228180450,36.60704458,248.37,248.36,0.2]
[1758228189958,13.59559401,248.36,248.33,0.03]
[1758228190149,15.56071058,248.34,248.33,0.03]
[1758228190739,14.09187904,248.37,248.33,0.65]
[1758228191060,30.9,248.36,248.33,0.65]
[1758228191264,32.58079343,248.36,248.33,0.65]
[1758228192245,4.02657539,248.35,248.33,0.65]
[1758228193154,30.9,248.34,248.33,0.65]
[1758228193734,34.92673753,248.34,248.33,0.65]
[1758228195162,34.92673753,248.34,248.33,0.03]
[1758228195564,36.60753096,248.34,248.33,0.03]
[1758228199958,34.92673753,248.34,248.33,0.03]
[1758228200164,34.92673753,248.34,248.33,0.65]
[1758228200462,4.02673753,248.34,248.33,0.65]
[1758228201353,10.06562789,248.37,248.34,20.0]
[1758228201354,4.02625115,248.37,248.34,20.0]
[1758228201566,4.02625115,248.37,248.36,20.0]
[1758228201868,4.02625115,248.37,248.36,20.62]
[1758228208275,0.06,248.38,248.36,20.62]
[1758228208442,0.06,248.38,248.37,0.62]
[1758228211246,4.0861002,248.38,248.36,20.0]
[1758228211440,4.0861002,248.38,248.36,20.62]
[1758228214159,4.0861002,248.38,248.36,20.0]
[1758228216642,0.06,248.38,248.37,0.62]
[1758228217552,0.06,248.38,248.37,2.23066259]
[1758228217759,0.06,248.41,248.4,20.0]
[1758228217958,0.06,248.41,248.4,51.30257648]
[1758228218176,0.06,248.41,248.4,51.92257648]
[1758228218576,0.06,248.41,248.4,55.94834137]
[1758228219790,0.06,248.41,248.4,55.96834137]
[1758228220987,0.77,248.41,248.4,50.9]
[1758228221284,4.79560283,248.41,248.4,20.0]
[1758228221511,0.77,248.41,248.4,20.0]
[1758228221707,0.06,248.41,248.4,20.0]
[1758228223407,0.06,248.41,248.4,20.62]
[1758228224901,0.06,248.41,248.4,24.64576489]
[1758228228306,0.06,248.41,248.4,20.62]
[1758228228490,0.06,248.41,248.4,20.0]
[1758228228691,4.79560283,248.41,248.4,20.0]
[1758228231808,0.06,248.41,248.4,20.0]
[1758228232014,0.06,248.41,248.4,25.04834137]
[1758228233712,0.06,248.41,248.4,104.74834137]
[1758228233896,0.06,248.41,248.4,104.34576489]
[1758228234414,0.06,248.41,248.4,135.28576489]
[1758228237106,0.06,248.41,248.4,136.89623293]
[1758228237306,0.06,248.41,248.4,135.28576489]
[1758228237915,0.06,248.41,248.4,135.26576489]
[1758228239610,0.06,248.41,248.4,103.72576489]
[1758228239817,0.06,248.41,248.4,134.62576489]
[1758228241836,0.06,248.41,248.4,130.6]
[1758228246434,0.75,248.41,248.4,99.7]
[1758228246642,0.75,248.41,248.4,130.58]
[1758228247021,0.75,248.41,248.4,20.0]
[1758228247244,0.75,248.41,248.4,50.92]
[1758228248714,4.77560283,248.41,248.4,50.92]
[1758228249431,0.75,248.41,248.4,50.92]
[1758228251526,4.77560283,248.41,248.4,20.0]
[1758228256420,4.08560283,248.41,248.4,20.0]
[1758228256627,0.06,248.44,248.43,46.0]
[1758228256821,0.06,248.46,248.43,78.02252787]
[1758228257138,0.06,248.46,248.45,20.0]
[1758228257343,0.06,248.46,248.45,51.38249547]
[1758228257643,0.06,248.46,248.45,52.00249547]
[1758228258638,0.06,248.46,248.45,56.02745018]
[1758228260745,0.06,248.46,248.45,24.42745018]
[1758228260957,0.06,248.46,248.45,55.40745018]
[1758228261647,0.06,248.46,248.45,20.40249547]
[1758228261855,0.06,248.46,248.45,51.36249547]
[1758228262761,0.06,248.46,248.45,20.40249547]
[1758228263056,0.06,248.46,248.45,51.38249547]
[1758228263434,0.06,248.46,248.45,131.08249547]
[1758228263659,0.06,248.46,248.45,134.70495471]
[1758228265263,0.06,248.46,248.45,130.68]
[1758228265853,0.06,248.46,248.45,130.66]
[1758228266931,0.06,248.46,248.45,99.7]
[1758228267132,0.76,248.46,248.45,130.66]
[1758228267330,0.06,248.46,248.45,130.66]
[1758228267760,0.06,248.46,248.45,99.7]
[1758228267952,0.06,248.46,248.45,130.66]
[1758228268644,0.06,248.46,248.45,134.68495471]
[1758228269046,0.06,248.46,248.45,135.30495471]
[1758228269240,0.06,248.46,248.45,134.68495471]
[1758228271464,0.06,248.46,248.45,135.30495471]
[1758228275947,0.06,248.46,248.45,136.91516343]
[1758228276957,0.06,248.5,248.49,20.0]
[1758228277160,0.06,248.5,248.49,51.32243068]
[1758228277354,0.06,248.5,248.49,51.94243068]
[1758228278462,0.06,248.5,248.49,55.34673749]
[1758228280243,0.76,248.5,248.49,24.42673749]
[1758228280448,0.06,248.5,248.49,55.36673749]
[1758228282762,0.06,248.5,248.49,135.68673749]
[1758228282964,0.06,248.5,248.49,135.28430681]
[1758228283164,0.06,248.5,248.49,136.8941915]
[1758228283472,0.06,248.51,248.49,136.8941915]
[1758228283769,0.06,248.51,248.5,0.40241448]
[1758228284274,0.06,248.51,248.5,2.01229917]
[1758228284460,0.06,248.51,248.5,6.03644403]
[1758228285186,0.06,248.52,248.51,20.0]
[1758228285475,0.06,248.52,248.51,50.92]
[1758228285969,0.06,248.52,248.51,52.52975512]
[1758228286973,0.06,248.52,248.51,56.55373805]
[1758228287161,2.13660001,248.56,248.51,57.57613634]
[1758228287666,2.13660001,248.56,248.51,56.95613634]
[1758228287871,2.83660001,248.56,248.51,56.95613634]
[1758228288472,2.13660001,248.56,248.54,26.0]
[1758228288767,2.13660001,248.56,248.55,51.30233353]
[1758228289146,0.7,248.61,248.58,46.0]
[1758228289370,0.06,248.62,248.58,77.30228497]
[1758228289371,0.8,248.59,248.58,77.30228497]
[1758228292065,0.8,248.59,248.58,81.32513475]
[1758228292978,0.8,248.59,248.58,161.02513475]
[1758228293164,0.8,248.59,248.58,160.62284978]
[1758228293988,0.8,248.59,248.58,20.0]
[1758228294157,4.82268796,248.59,248.58,20.0]
[1758228294861,4.88268796,248.59,248.58,20.0]
[1758228300792,18.47828197,248.59,248.58,20.0]
[1758228301081,28.81932501,248.59,248.58,20.0]
[1758228303266,28.81932501,248.59,248.56,20.0]
[1758228303468,0.71,248.58,248.56,20.0]
[1758228303675,0.71,248.57,248.56,20.0]
[1758228305065,13.59559401,248.56,248.51,0.03]
[1758228305265,0.28432314,248.53,248.51,20.03]
[1758228305470,4.73382102,248.52,248.51,20.03]
[1758228305685,4.73382102,248.52,248.51,0.03]
[1758228306089,4.73382102,248.52,248.51,20.03]
[1758228307575,4.73382102,248.52,248.51,0.03]
[1758228307775,4.73382102,248.52,248.51,20.03]
[1758228308178,4.73382102,248.52,248.51,0.03]
[1758228309167,20.29101049,248.52,248.51,0.03]
[1758228317383,18.61373817,248.52,248.51,0.03]
[1758228317588,20.29101049,248.52,248.51,0.03]
[1758228317776,18.61373817,248.52,248.51,0.03]
[1758228317978,20.29101049,248.52,248.51,0.03]
[1758228321802,17.90373817,248.52,248.51,0.03]
[1758228322006,4.02382102,248.52,248.51,0.03]
[1758228322589,4.02382102,248.52,248.51,20.03]
[1758228322788,10.05880789,248.54,248.51,20.03]
[1758228323005,4.02333534,248.55,248.52,0.62]
[1758228323189,4.02333534,248.55,248.53,20.0]
[1758228324107,4.02333534,248.55,248.53,20.62]
[1758228324310,14.08066448,248.57,248.55,20.0]
[1758228324510,4.02301162,248.57,248.56,0.62]
[1758228325499,4.18284219,248.59,248.56,0.62]
[1758228325706,4.18284219,248.59,248.57,20.62]
[1758228326405,0.16,248.59,248.58,0.62]
[1758228326596,0.16,248.59,248.58,1.02228497]
[1758228330117,0.16,248.59,248.58,32.08228497]
[1758228331497,0.16,248.59,248.58,111.78228497]
[1758228331701,0.16,248.59,248.58,111.38]
[1758228334831,0.16,248.59,248.58,79.7]
[1758228335014,0.16,248.59,248.58,111.12228497]
[1758228335201,0.16,248.59,248.58,110.72]
[1758228338531,0.16,248.59,248.58,79.7]
[1758228338713,0.16,248.59,248.58,111.10228497]
[1758228338907,0.16,248.59,248.58,110.7]
[1758228340037,0.06,248.62,248.61,46.0]
[1758228340236,0.06,248.65,248.64,20.0]
[1758228340443,0.06,248.65,248.64,51.4421879]
[1758228340606,0.06,248.65,248.64,52.0621879]
[1758228342065,0.06,248.65,248.64,56.08406692]
[1758228344326,0.06,248.65,248.64,25.04406692]
[1758228344551,0.06,248.65,248.64,56.06406692]
[1758228345951,4.220484,248.73,248.66,26.0]
[1758228345952,0.2,248.73,248.66,26.0]
[1758228346127,0.2,248.73,248.68,20.0]
[1758228346634,0.06,248.7,248.68,24.6412321]
[1758228347162,0.2,248.73,248.72,20.0]
[1758228347456,0.2,248.73,248.72,51.42205853]
[1758228347655,0.2,248.73,248.72,20.40205853]
[1758228347952,0.2,248.73,248.72,52.04205853]
[1758228348948,0.2,248.73,248.72,56.06264392]
[1758228349354,0.2,248.73,248.72,55.44264392]
[1758228349660,0.2,248.73,248.72,56.06264392]
[1758228350049,0.2,248.73,248.72,55.42264392]
[1758228350649,0.2,248.73,248.72,51.40205853]
[1758228351050,0.2,248.77,248.76,20.0]
[1758228351247,0.2,248.77,248.76,51.02]
[1758228353262,0.2,248.77,248.76,55.03993889]
[1758228354166,0.2,248.77,248.76,24.01993889]
[1758228354363,0.2,248.77,248.76,55.01993889]
[1758228356252,0.86,248.77,248.76,51.0]
[1758228356464,0.86,248.77,248.76,50.98]
[1758228356852,4.8797773,248.77,248.76,50.98]
[1758228357052,4.8797773,248.77,248.76,20.0]
[1758228357750,0.86,248.77,248.76,20.0]
[1758228358674,4.8797773,248.77,248.76,20.0]
[1758228360551,0.2,248.77,248.76,20.40199388]
[1758228360753,0.2,248.77,248.76,51.08]
[1758228364155,0.2,248.77,248.76,20.0]
[1758228364356,0.2,248.77,248.76,51.08]
[1758228365162,0.2,248.77,248.76,20.0]
[1758228365673,0.2,248.77,248.76,55.09993889]
[1758228365858,0.2,248.77,248.76,56.12193277]
[1758228366258,0.1,248.79,248.78,50.01961572]
[1758228366459,0.1,248.79,248.78,81.54157729]
[1758228368489,0.1,248.79,248.78,82.16157729]
[1758228368663,0.1,248.79,248.78,81.75961572]
[1758228368864,0.1,248.79,248.78,82.16157729]
[1758228369078,0.06,248.8,248.78,82.16157729]
[1758228369284,0.06,248.82,248.81,20.0]
[1758228369476,0.06,248.82,248.81,51.5019131]
[1758228370061,0.06,248.82,248.81,20.4019131]
[1758228370261,0.06,248.82,248.81,51.5219131]
[1758228370480,0.06,248.82,248.81,20.4019131]
[1758228370677,0.72,248.82,248.81,51.14]
[1758228372190,0.72,248.82,248.81,55.56104416]
[1758228373581,0.72,248.82,248.81,51.14]
[1758228373779,0.72,248.82,248.81,51.5419131]
[1758228376097,0.72,248.82,248.81,131.2419131]
[1758228376284,0.72,248.82,248.81,130.84]
[1758228377074,0.06,248.82,248.81,55.11913106]
[1758228377395,0.06,248.82,248.81,55.52104416]
[1758228379275,0.06,248.82,248.81,25.04104416]
[1758228379489,0.06,248.82,248.81,56.20104416]
[1758228382101,0.06,248.82,248.81,135.90104416]
[1758228382310,0.06,248.82,248.81,135.49913106]
[1758228383004,0.72,248.82,248.81,20.0]
[1758228383298,4.73896953,248.82,248.81,20.0]
[1758228383501,7.35844068,248.82,248.81,20.0]
[1758228385096,4.73896953,248.82,248.81,20.0]
[1758228386694,7.35844068,248.82,248.81,20.0]
[1758228386889,0.06,248.82,248.81,51.26]
[1758228387089,0.06,248.82,248.81,55.27913106]
[1758228387522,0.06,248.82,248.81,55.68104416]
[1758228387807,0.06,248.82,248.81,56.30104416]
[1758228389116,0.06,248.82,248.81,55.74104416]
[1758228389322,0.06,248.82,248.81,56.36104416]
[1758228390121,0.06,248.82,248.81,55.74104416]
[1758228390524,0.06,248.82,248.81,56.36104416]
[1758228390896,0.06,248.82,248.81,25.04104416]
[1758228391096,0.06,248.82,248.81,56.34104416]
[1758228392321,0.06,248.82,248.81,70.22096131]
[1758228396021,0.06,248.82,248.81,24.42104416]
[1758228396196,0.06,248.82,248.81,55.82104416]
[1758228399423,0.73,248.82,248.81,55.82104416]
[1758228399622,0.06,248.82,248.81,55.82104416]
[1758228400818,0.06,248.82,248.81,70.32096131]
[1758228401020,0.06,248.85,248.84,26.0]
[1758228401209,0.06,248.85,248.84,77.84186465]
[1758228401524,0.06,248.85,248.84,92.3417818]
[1758228401727,0.06,248.85,248.84,91.93991715]
[1758228403613,0.06,248.85,248.84,95.95856366]
[1758228408930,0.06,248.85,248.84,95.33856366]
[1758228409611,0.23,248.88,248.87,26.0]
[1758228409934,0.23,248.88,248.87,31.7818162]
[1758228410119,0.1,248.89,248.88,20.0]
[1758228411432,0.1,248.89,248.88,51.36]
[1758228411812,0.77,248.89,248.88,51.36]
[1758228414135,0.77,248.89,248.88,55.37800064]
[1758228414517,0.77,248.89,248.88,20.0]
[1758228414518,4.7878392,248.89,248.88,20.0]
[1758228415513,4.7878392,248.89,248.88,51.34]
[1758228416929,0.1,248.89,248.88,51.34]
[1758228417243,0.16,248.89,248.88,55.35800064]
[1758228417433,0.16,248.89,248.88,51.34]
[1758228419734,0.16,248.89,248.88,55.35800064]
[1758228429146,0.16,248.89,248.88,55.7598007]
[1758228429954,0.16,248.89,248.88,51.74180006]
[1758228430739,0.16,248.89,248.88,55.7598007]
[1758228436560,0.16,248.89,248.88,55.7898007]
[1758228437668,0.16,248.89,248.88,56.4498007]
[1758228438358,0.06,248.92,248.91,46.0]
[1758228438552,0.06,248.92,248.91,77.60175163]
[1758228438861,0.1,248.99,248.98,20.0]
[1758228439066,0.1,248.99,248.98,51.2]
[1758228439477,0.1,248.99,248.98,51.60163868]
[1758228439648,0.1,248.99,248.98,55.61802553]
[1758228443173,0.1,248.99,248.98,20.40163868]
[1758228443174,0.81,248.99,248.98,20.40163868]
[1758228443351,4.82622555,248.99,248.98,20.0]
[1758228444066,0.81,248.99,248.98,20.0]
[1758228444372,0.1,248.99,248.98,20.0]
[1758228444578,0.1,248.99,248.98,24.01638685]
[1758228445356,0.1,248.99,248.98,20.0]
[1758228446780,0.82,248.99,248.98,20.0]
[1758228448981,0.82,248.99,248.98,51.3]
[1758228451278,0.82,248.99,248.98,55.31638685]
[1758228451488,0.1,248.99,248.98,55.31638685]
[1758228451663,0.1,248.99,248.98,55.71802553]
[1758228453167,0.1,248.99,248.98,56.41802553]
[1758228453380,0.1,248.99,248.98,55.71802553]
[1758228454186,0.1,248.99,248.98,56.41802553]
[1758228455486,0.16,248.99,248.98,56.41802553]
[1758228456760,0.16,248.99,248.98,20.0]
[1758228457082,0.16,248.99,248.98,55.27638685]
[1758228458795,0.1,249.09,249.07,20.0]
[1758228458960,0.1,249.09,249.08,26.0]
[1758228459167,0.1,249.09,249.08,57.34]
[1758228459878,0.82,249.09,249.08,26.0]
[1758228460095,0.82,249.09,249.08,57.32]
[1758228460672,0.82,249.09,249.08,61.33477436]
[1758228461075,0.82,249.09,249.08,31.32]
[1758228461282,0.82,249.09,249.07,51.32]
[1758228461491,0.72,249.08,249.07,51.32]
[1758228461885,0.72,249.08,249.07,20.0]
[1758228462775,4.73477436,249.08,249.07,20.0]
[1758228473904,7.34392837,249.08,249.07,20.0]
[1758228474800,4.73477436,249.08,249.07,20.0]
[1758228475001,7.34392837,249.08,249.07,20.0]
[1758228475399,7.40392837,249.08,249.07,20.0]
[1758228477814,13.59559401,249.07,249.05,20.0]
[1758228478006,3.57347715,249.06,249.0,20.0]
[1758228478206,2.60915401,249.01,249.0,20.0]
[1758228478413,3.28915401,249.01,249.0,20.0]
[1758228479300,7.30505698,249.01,249.0,20.0]
[1758228481311,17.34481441,249.01,248.97,20.0]
[1758228481519,2.60915401,248.98,248.97,20.0]
[1758228481688,3.28915401,248.98,248.97,20.0]
[1758228483515,7.30554086,248.98,248.97,20.0]
[1758228489012,6.62554086,248.98,248.97,20.0]
[1758228491001,7.30554086,248.98,248.97,20.0]
[1758228493821,7.30554086,248.98,248.97,20.03]
[1758228494825,4.01638685,248.98,248.97,20.03]
[1758228497121,2.60915401,248.98,248.97,20.03]
[1758228498307,6.62554086,248.98,248.97,20.03]
[1758228499805,4.01622555,248.99,248.97,20.03]
[1758228500020,2.60915401,248.98,248.97,20.03]
[1758228500218,4.69622555,248.99,248.97,20.03]
[1758228500420,2.60915401,248.98,248.97,20.03]
[1758228501421,6.62554086,248.98,248.97,20.03]
[1758228503026,4.01638685,248.98,248.97,20.03]
[1758228503230,6.62554086,248.98,248.97,20.03]
[1758228503924,4.01620734,249.0,248.99,20.0]
[1758228505228,7.33536135,249.0,248.99,20.0]
[1758228506710,4.01620734,249.0,248.99,20.0]
[1758228506911,6.62536135,249.0,248.99,20.0]
[1758228507114,7.33536135,249.0,248.99,20.0]
[1758228508152,13.59559401,248.99,248.97,0.03]
[1758228508430,47.56907116,248.98,248.97,0.03]
[1758228508727,48.27907116,248.98,248.97,0.03]
[1758228509611,52.29545801,248.98,248.97,0.03]
[1758228516635,52.29545801,248.98,248.88,20.03]
[1758228516636,13.59559401,248.94,248.88,20.03]
[1758228516842,2.60915401,248.9,248.88,20.03]
[1758228517033,33.68915401,248.9,248.88,20.7]
[1758228517216,31.08,248.9,248.88,20.7]
[1758228517418,33.68915401,248.9,248.88,20.7]
[1758228517741,4.0178392,248.89,248.88,20.03]
[1758228518319,4.0178392,248.89,248.88,20.7]
[1758228522321,4.0178392,248.89,248.88,20.03]
[1758228523439,4.0178392,248.89,248.88,20.7]
[1758228526140,4.0178392,248.89,248.88,20.03]
[1758228528949,5.69148188,248.89,248.88,20.03]
[1758228530232,6.40148188,248.89,248.88,20.03]
[1758228530934,6.68580502,248.89,248.88,20.03]
[1758228531358,37.72580502,248.89,248.88,20.03]
[1758228535645,6.68580502,248.89,248.88,20.03]
[1758228535957,37.70580502,248.89,248.88,20.03]
[1758228536335,37.68580502,248.89,248.88,20.03]
[1758228536745,36.01216234,248.89,248.88,20.03]
[1758228536954,37.68580502,248.89,248.88,20.03]